bitfinex-derivatives/quotes_BTCF0:USTF0_20250129
["timestamp","ask_amount","ask_price","bid_price","bid_amount"]
[1738145182595,0.002,102360.0,102350.0,0.5409124]
[1738145182801,0.002,102360.0,102350.0,0.58903967]
[1738145184300,0.002,102360.0,102350.0,0.5409124]
[1738145189710,0.002,102360.0,102350.0,0.9017124]
[1738145189913,0.002,102360.0,102350.0,0.94983967]
[1738145190613,0.10279221,102370.0,102360.0,0.195475]
[1738145190817,0.10279221,102370.0,102360.0,0.71932954]
[1738145191109,0.10279221,102370.0,102360.0,0.95309075]
[1738145191306,0.10279221,102370.0,102360.0,1.05078039]
[1738145191698,0.10579221,102370.0,102360.0,1.05078039]
[1738145192510,0.10579221,102370.0,102360.0,1.08954277]
[1738145193210,0.08657431,102370.0,102360.0,1.09054277]
[1738145193708,0.01535697,102370.0,102360.0,1.08954277]
[1738145193910,0.001,102370.0,102360.0,1.08954277]
[1738145194911,0.001,102370.0,102360.0,1.10422277]
[1738145195715,0.10733934,102380.0,102370.0,0.195456]
[1738145195927,0.10733934,102380.0,102370.0,0.28234565]
[1738145196113,0.10733934,102380.0,102370.0,0.39034933]
[1738145196324,0.10733934,102380.0,102370.0,0.90055669]
[1738145196614,0.84246861,102400.0,102380.0,0.195437]
[1738145196818,0.88945723,102400.0,102390.0,0.04812727]
[1738145197409,0.84132996,102400.0,102390.0,0.04812727]
[1738145199317,0.88945723,102400.0,102390.0,0.04812727]
[1738145199518,0.195418,102390.0,102380.0,0.2800104]
[1738145199718,0.60434527,102390.0,102380.0,0.00374613]
[1738145199921,0.63434527,102390.0,102380.0,0.11467598]
[1738145200622,0.61500865,102390.0,102380.0,0.11467598]
[1738145200920,0.61500865,102390.0,102380.0,0.00374613]
[1738145201113,0.61500865,102390.0,102380.0,0.00474613]
[1738145202226,0.56688138,102390.0,102380.0,0.2483104]
[1738145203323,0.55574806,102390.0,102380.0,0.33132294]
[1738145204521,0.55574806,102390.0,102380.0,0.28319567]
[1738145204721,0.55574806,102390.0,102380.0,0.25119567]
[1738145212330,0.55574806,102390.0,102380.0,0.28991575]
[1738145214333,0.52574806,102390.0,102380.0,0.36321229]
[1738145214534,0.52574806,102390.0,102380.0,0.39581229]
[1738145214728,0.52574806,102390.0,102380.0,0.41049229]
[1738145214934,0.16494806,102390.0,102380.0,0.41049229]
[1738145215734,0.16494806,102390.0,102380.0,0.50816284]
[1738145215929,1.02195475,102400.0,102390.0,0.195418]
[1738145216123,1.02195475,102400.0,102390.0,0.26871454]
[1738145216319,1.02195475,102400.0,102390.0,0.30749828]
[1738145216531,0.97312533,102400.0,102390.0,0.30749828]
[1738145217123,0.97312533,102400.0,102390.0,0.3458233]
[1738145218034,0.97412533,102400.0,102390.0,0.3458233]
[1738145219235,0.65550933,102400.0,102390.0,0.3458233]
[1738145219435,0.72880587,102400.0,102390.0,0.1504053]
[1738145219632,0.76120587,102400.0,102390.0,0.11208028]
[1738145220035,0.195418,102390.0,102380.0,0.01468]
[1738145220335,0.62951454,102390.0,102380.0,0.16450264]
[1738145220538,0.588818,102390.0,102380.0,0.16450264]
[1738145221330,0.589818,102390.0,102380.0,0.16450264]
[1738145221530,0.589818,102390.0,102380.0,0.35993964]
[1738145221931,0.589818,102390.0,102380.0,0.43323618]
[1738145222131,0.196418,102390.0,102380.0,0.43323618]
[1738145222327,0.196418,102390.0,102380.0,0.49833618]
[1738145223036,0.001,102390.0,102380.0,0.59600673]
[1738145223440,0.001,102390.0,102380.0,0.95680673]
[1738145223741,0.001,102390.0,102380.0,0.59600673]
[1738145224841,0.001,102390.0,102380.0,0.95680673]
[1738145228744,0.001,102390.0,102380.0,0.59600673]
[1738145229442,0.001,102390.0,102380.0,0.63671529]
[1738145231143,0.001,102390.0,102380.0,0.59600673]
[1738145234546,0.001,102390.0,102380.0,0.58132673]
[1738145234740,0.001,102390.0,102380.0,0.59600673]
[1738145239339,0.196418,102390.0,102380.0,0.59600673]
[1738145240544,0.196418,102390.0,102380.0,0.63671529]
[1738145243552,0.196418,102390.0,102380.0,0.53904474]
[1738145246644,0.196418,102390.0,102380.0,0.56192924]
[1738145248455,0.196418,102390.0,102380.0,0.51383872]
[1738145248959,0.196418,102390.0,102380.0,0.65959979]
[1738145249154,0.196418,102390.0,102380.0,0.61889123]
[1738145249457,0.196358,102390.0,102380.0,0.61889123]
[1738145250961,0.00094,102390.0,102380.0,0.61889123]
[1738145254449,0.00094,102390.0,102380.0,0.60421123]
[1738145254847,0.00094,102390.0,102380.0,0.61889123]
[1738145255974,0.00094,102390.0,102380.0,0.65959979]
[1738145258767,0.00094,102390.0,102380.0,1.02039979]
[1738145259063,0.00094,102390.0,102380.0,0.65959979]
[1738145262657,0.00094,102390.0,102380.0,1.02039979]
[1738145262962,0.00094,102390.0,102380.0,1.06849031]
[1738145263169,0.00094,102390.0,102380.0,1.02039979]
[1738145263566,0.30453167,102400.0,102390.0,0.195418]
[1738145263866,0.30453167,102400.0,102390.0,0.35436552]
[1738145264069,0.30453167,102400.0,102390.0,0.46481049]
[1738145264370,0.30453167,102400.0,102390.0,0.56248104]
[1738145264570,0.30553167,102400.0,102390.0,0.56248104]
[1738145265459,0.04237932,102400.0,102390.0,0.56248104]
[1738145265861,0.02284677,102400.0,102390.0,0.56248104]
[1738145266179,0.02284677,102400.0,102390.0,0.52177248]
[1738145267666,0.03644222,102400.0,102390.0,0.52177248]
[1738145269162,0.03644222,102400.0,102390.0,0.56248104]
[1738145269467,0.03644222,102400.0,102390.0,0.52177248]
[1738145269659,0.03644222,102400.0,102390.0,0.56248104]
[1738145270568,0.03644222,102400.0,102390.0,0.52177248]
[1738145270978,0.03644222,102400.0,102390.0,0.569863]
[1738145271172,0.03644222,102400.0,102390.0,0.52177248]
[1738145271474,0.03644222,102400.0,102390.0,0.930663]
[1738145271685,0.03644222,102400.0,102390.0,0.569863]
[1738145271870,0.03644222,102400.0,102390.0,0.930663]
[1738145272775,0.03644222,102400.0,102390.0,0.88257248]
[1738145272966,0.03644222,102400.0,102390.0,0.97137156]
[1738145273162,0.03644222,102400.0,102390.0,0.88257248]
[1738145274475,0.03644222,102400.0,102390.0,0.89725248]
[1738145274668,0.03644222,102400.0,102390.0,0.88257248]
[1738145274869,0.03644222,102400.0,102390.0,0.89725248]
[1738145276174,0.23184122,102400.0,102390.0,0.53645248]
[1738145276369,0.59264122,102400.0,102390.0,0.53645248]
[1738145276675,0.23184122,102400.0,102390.0,0.53645248]
[1738145277579,0.59264122,102400.0,102390.0,0.53645248]
[1738145279576,0.23184122,102400.0,102390.0,0.53645248]
[1738145280870,0.03644222,102400.0,102390.0,0.53645248]
[1738145282483,0.03644222,102400.0,102390.0,0.57716104]
[1738145283081,0.03644222,102400.0,102390.0,0.53645248]
[1738145283276,0.03644222,102400.0,102390.0,0.57716104]
[1738145284585,0.39724222,102400.0,102390.0,0.57716104]
[1738145284784,0.59264122,102400.0,102390.0,0.53645248]
[1738145285681,0.64073174,102400.0,102390.0,0.16347341]
[1738145286185,0.62454122,102400.0,102390.0,0.21156393]
[1738145286686,0.03644222,102400.0,102390.0,0.55273346]
[1738145286885,0.02284677,102400.0,102390.0,0.94453346]
[1738145287183,0.13995902,102400.0,102390.0,0.94453346]
[1738145288678,0.12643651,102400.0,102390.0,0.94453346]
[1738145288886,0.12543651,102400.0,102390.0,0.94453346]
[1738145289980,0.00832426,102400.0,102390.0,0.94453346]
[1738145291476,0.79122641,102420.0,102390.0,0.74911546]
[1738145291677,0.79122641,102420.0,102410.0,0.24347052]
[1738145292185,0.79122641,102420.0,102410.0,0.39227528]
[1738145293183,0.79122641,102420.0,102410.0,0.39327528]
[1738145293884,0.64518631,102420.0,102410.0,0.39327528]
[1738145294680,0.63838055,102420.0,102410.0,0.40795528]
[1738145296479,0.49032247,102420.0,102410.0,0.4560458]
[1738145296688,0.49032247,102420.0,102410.0,0.41810956]
[1738145296991,0.49032247,102420.0,102410.0,0.53859068]
[1738145297589,0.49032247,102420.0,102410.0,0.50559068]
[1738145297786,0.73377399,102420.0,102410.0,0.40794874]
[1738145298390,0.68568347,102420.0,102410.0,0.40794874]
[1738145298785,0.73377399,102420.0,102410.0,0.16447822]
[1738145298981,1.09457399,102420.0,102410.0,0.001]
[1738145299279,1.07768347,102420.0,102410.0,0.24447052]
[1738145299693,1.07768347,102420.0,102410.0,0.28239497]
[1738145300094,1.07768347,102420.0,102410.0,0.24447052]
[1738145300595,1.07768347,102420.0,102410.0,0.19638]
[1738145301491,0.71688347,102420.0,102410.0,0.19638]
[1738145301691,0.7067418,102420.0,102410.0,0.19638]
[1738145303996,0.8527819,102420.0,102410.0,0.19638]
[1738145306300,1.2135819,102420.0,102410.0,0.19638]
[1738145311502,0.2654209,102420.0,102410.0,0.36727904]
[1738145311695,0.26315235,102420.0,102410.0,0.57945811]
[1738145311890,0.26315235,102420.0,102410.0,1.01351521]
[1738145312094,1e-08,102420.0,102410.0,0.94025811]
[1738145312902,1e-08,102420.0,102410.0,0.98096667]
[1738145313406,1e-08,102420.0,102410.0,0.97996667]
[1738145314708,0.17524812,102430.0,102410.0,0.79926667]
[1738145314709,0.15602702,102430.0,102410.0,0.79926667]
[1738145314901,0.15602702,102430.0,102420.0,0.2686181]
[1738145315107,0.15602702,102430.0,102420.0,0.38005488]
[1738145315304,0.15602702,102430.0,102420.0,0.55823494]
[1738145315499,0.15602702,102430.0,102420.0,0.65587688]
[1738145316504,0.15602702,102430.0,102420.0,1.01667688]
[1738145316720,0.09959935,102440.0,102430.0,0.195342]
[1738145316907,0.08763888,102440.0,102430.0,0.30652732]
[1738145317098,0.08763888,102440.0,102430.0,0.41952253]
[1738145317601,0.08763888,102440.0,102430.0,0.45072253]
[1738145318296,0.08763888,102440.0,102430.0,0.41279431]
[1738145318502,0.08763888,102440.0,102430.0,0.45066451]
[1738145318901,0.07649556,102440.0,102430.0,0.45066451]
[1738145319094,0.07649556,102440.0,102430.0,0.54828739]
[1738145319300,0.07649556,102440.0,102430.0,0.51041719]
[1738145319698,0.07649556,102440.0,102430.0,0.87121719]
[1738145319899,0.07649556,102440.0,102430.0,1.02215889]
[1738145320305,0.07649556,102440.0,102430.0,1.06286745]
[1738145320506,0.07649556,102440.0,102430.0,1.02215889]
[1738145320705,0.01195611,102450.0,102440.0,0.195324]
[1738145320908,0.3608,102460.0,102450.0,0.195304]
[1738145321114,0.3608,102460.0,102450.0,0.2685611]
[1738145321306,0.3608,102460.0,102450.0,0.37557253]
[1738145322402,0.4340571,102460.0,102450.0,0.10701143]
[1738145322609,0.64121978,102460.0,102440.0,0.22586713]
[1738145322815,0.4249,102450.0,102440.0,0.22586713]
[1738145323114,0.4249,102450.0,102440.0,0.29912423]
[1738145323312,0.39529169,102450.0,102440.0,0.29912423]
[1738145323721,2.09059569,102450.0,102440.0,0.22586713]
[1738145323916,2.16385279,102450.0,102440.0,0.19546713]
[1738145324119,2.19565279,102450.0,102430.0,0.195335]
[1738145324327,0.3608,102440.0,102430.0,0.195335]
[1738145324624,0.3608,102440.0,102430.0,0.2992798]
[1738145325119,0.34147338,102440.0,102430.0,0.2992798]
[1738145326228,0.61005448,102440.0,102430.0,0.2992798]
[1738145326429,0.61005448,102440.0,102430.0,0.195335]
[1738145326620,0.53679738,102440.0,102430.0,0.195335]
[1738145326923,0.195343,102430.0,102420.0,0.22861055]
[1738145327119,0.556143,102430.0,102420.0,0.22861055]
[1738145327317,0.556143,102430.0,102420.0,0.41262208]
[1738145329123,0.556143,102430.0,102420.0,0.33936498]
[1738145330219,0.556143,102430.0,102420.0,0.41262208]
[1738145331515,0.556143,102430.0,102420.0,0.44332208]
[1738145334234,0.3608,102430.0,102420.0,0.44332208]
[1738145334622,0.3608,102430.0,102420.0,0.45800208]
[1738145334832,0.3608,102430.0,102420.0,0.55563449]
[1738145335436,0.3608,102430.0,102420.0,0.62889159]
[1738145335730,0.3608,102440.0,102420.0,0.87288859]
[1738145335931,0.3608,102440.0,102430.0,0.3016001]
[1738145336323,0.3608,102440.0,102430.0,0.40759123]
[1738145336523,0.3608,102440.0,102430.0,0.50522364]
[1738145338632,0.20753982,102450.0,102440.0,0.195324]
[1738145338834,0.92913982,102450.0,102440.0,0.2685811]
[1738145339637,0.20753982,102450.0,102440.0,0.2685811]
[1738145339828,0.92913982,102450.0,102440.0,0.2685811]
[1738145341335,0.57033313,102450.0,102440.0,0.3775811]
[1738145341527,0.17498055,102470.0,102460.0,0.195285]
[1738145341724,0.17498055,102470.0,102460.0,0.6293421]
[1738145341925,0.17498055,102470.0,102460.0,0.83763904]
[1738145342340,0.17498055,102470.0,102460.0,0.89740808]
[1738145342640,0.17498055,102470.0,102460.0,0.96794271]
[1738145343138,0.1554667,102470.0,102460.0,0.93010808]
[1738145343331,0.1554667,102470.0,102460.0,0.93110808]
[1738145344030,0.1055667,102470.0,102460.0,0.96893178]
[1738145345447,0.1055667,102470.0,102460.0,0.60713178]
[1738145345738,0.1055667,102470.0,102460.0,0.56930808]
[1738145346739,2.088148,102480.0,102470.0,0.195266]
[1738145347134,2.088148,102480.0,102470.0,0.30144579]
[1738145348046,2.088148,102480.0,102470.0,0.30244579]
[1738145348432,2.1614051,102480.0,102470.0,0.196266]
[1738145348636,2.088148,102480.0,102470.0,0.196266]
[1738145349936,0.556048,102480.0,102470.0,0.196266]
[1738145350126,0.556048,102480.0,102470.0,0.2695231]
[1738145350332,0.3608,102480.0,102470.0,0.36710787]
[1738145350638,0.33148443,102480.0,102470.0,0.47268839]
[1738145353940,0.33148443,102480.0,102470.0,0.37510362]
[1738145354134,0.52673143,102480.0,102470.0,0.37510362]
[1738145354735,0.52673143,102480.0,102470.0,0.38974362]
[1738145355244,0.33148443,102480.0,102470.0,0.38974362]
[1738145358246,0.52673143,102480.0,102470.0,0.38974362]
[1738145362347,0.59083143,102480.0,102470.0,0.38974362]
[1738145363036,0.59083143,102480.0,102470.0,0.31648652]
[1738145363237,0.59083143,102480.0,102470.0,0.30184652]
[1738145363438,0.69638853,102480.0,102470.0,0.001]
[1738145363745,0.62313143,102480.0,102470.0,0.001]
[1738145364249,0.62313143,102480.0,102470.0,0.196266]
[1738145365242,0.62313143,102480.0,102470.0,0.2695231]
[1738145367242,0.62313143,102480.0,102470.0,0.196266]
[1738145368945,0.291647,102480.0,102470.0,0.196266]
[1738145369141,0.652447,102480.0,102470.0,0.196266]
[1738145369348,0.5304571,102480.0,102450.0,0.04598613]
[1738145369651,0.556085,102460.0,102450.0,0.38875113]
[1738145369849,0.556085,102460.0,102450.0,0.42255987]
[1738145370555,0.556085,102460.0,102450.0,0.46202473]
[1738145373055,0.195285,102460.0,102450.0,0.46202473]
[1738145373258,0.556085,102460.0,102450.0,0.46202473]
[1738145373449,0.556085,102460.0,102450.0,0.38876763]
[1738145374754,0.556085,102460.0,102450.0,0.38880763]
[1738145377053,0.6293421,102460.0,102450.0,0.03961099]
[1738145377259,0.6909421,102460.0,102450.0,0.03961099]
[1738145377550,0.6909421,102460.0,102450.0,0.00014613]
[1738145377940,0.617685,102460.0,102450.0,0.00014613]
[1738145378141,0.617685,102460.0,102450.0,0.23496842]
[1738145378357,0.63154383,102460.0,102450.0,0.19545013]
[1738145379557,0.74838047,102460.0,102450.0,0.19545013]
[1738145380461,0.82163757,102460.0,102450.0,0.19545013]
[1738145380647,0.85413757,102460.0,102450.0,0.19545013]
[1738145381952,0.49333757,102460.0,102450.0,0.19545013]
[1738145382157,1.21493757,102460.0,102450.0,0.19545013]
[1738145382658,0.49333757,102460.0,102450.0,0.19545013]
[1738145382851,1.21493757,102460.0,102450.0,0.19545013]
[1738145385256,1.14168047,102460.0,102450.0,0.19545013]
[1738145385759,1.21493757,102460.0,102450.0,0.19545013]
[1738145388060,1.21493757,102460.0,102450.0,0.00014613]
[1738145390463,1.10918047,102460.0,102450.0,0.00014613]
[1738145391769,1.10918047,102460.0,102450.0,0.19545013]
[1738145396369,0.38758047,102460.0,102450.0,0.19545013]
[1738145396668,1.10918047,102460.0,102450.0,0.19545013]
[1738145397069,0.38758047,102460.0,102450.0,0.19545013]
[1738145397371,1.10918047,102460.0,102450.0,0.19545013]
[1738145397672,1.25493288,102460.0,102450.0,0.19545013]
[1738145398665,1.30297726,102460.0,102450.0,0.19545013]
[1738145400372,1.25493288,102460.0,102450.0,0.19545013]
[1738145401363,1.25493288,102460.0,102450.0,0.2351479]
[1738145403364,1.13809624,102460.0,102450.0,0.2351479]
[1738145403769,1.13809624,102460.0,102450.0,0.28319228]
[1738145403770,0.71569624,102460.0,102450.0,0.28319228]
[1738145404069,0.71569624,102460.0,102450.0,0.31329228]
[1738145404272,0.71569624,102460.0,102450.0,0.2652479]
[1738145405164,0.71569624,102460.0,102450.0,0.31329228]
[1738145405468,0.71569624,102460.0,102450.0,0.42528136]
[1738145405666,0.71569624,102460.0,102450.0,0.45538136]
[1738145407375,0.76316628,102460.0,102450.0,0.40733698]
[1738145407579,0.76316628,102460.0,102450.0,0.2953479]
[1738145408264,0.7151219,102460.0,102450.0,0.2953479]
[1738145409274,0.7151219,102460.0,102450.0,0.34339228]
[1738145409474,0.7151219,102460.0,102450.0,0.2953479]
[1738145411666,0.83221146,102460.0,102450.0,0.2953479]
[1738145413177,0.47141146,102460.0,102450.0,0.2953479]
[1738145413379,0.83221146,102460.0,102450.0,0.2953479]
[1738145415780,0.83221146,102460.0,102450.0,0.34339228]
[1738145416383,0.6375008,102460.0,102450.0,0.44687149]
[1738145416583,0.26284197,102460.0,102450.0,0.90527531]
[1738145416887,0.26284197,102460.0,102450.0,0.54447531]
[1738145417072,0.81892697,102460.0,102450.0,0.54447531]
[1738145417687,0.81892697,102460.0,102450.0,0.39295172]
[1738145417877,0.81892697,102460.0,102450.0,0.2953479]
[1738145418282,0.7776358,102460.0,102450.0,0.2953479]
[1738145418486,0.7776358,102460.0,102450.0,0.34339228]
[1738145418785,0.7776358,102460.0,102450.0,0.2953479]
[1738145419485,0.7776358,102460.0,102450.0,0.34339228]
[1738145419787,0.7776358,102460.0,102450.0,0.2652479]
[1738145419985,0.82568018,102460.0,102450.0,0.2351479]
[1738145420184,0.88898018,102460.0,102450.0,0.2351479]
[1738145420890,0.88898018,102460.0,102450.0,0.0398439]
[1738145421292,0.88440654,102460.0,102450.0,0.0398439]
[1738145422293,0.76731698,102460.0,102450.0,0.0398439]
[1738145423596,0.40651698,102460.0,102450.0,0.0398439]
[1738145423797,1.12811698,102460.0,102450.0,0.0398439]
[1738145425497,1.30315171,102460.0,102450.0,0.0398439]
[1738145430795,1.25510733,102460.0,102450.0,0.08788828]
[1738145431101,1.22390733,102460.0,102450.0,0.28319228]
[1738145432400,0.27492233,102460.0,102450.0,0.39275013]
[1738145432592,0.27492233,102460.0,102450.0,0.47139451]
[1738145433100,0.27492233,102460.0,102450.0,0.92979833]
[1738145434105,0.27492233,102460.0,102450.0,0.88175395]
[1738145434300,0.27492233,102460.0,102450.0,0.78415013]
[1738145434494,0.27492233,102460.0,102450.0,0.79883013]
[1738145435699,0.27492233,102460.0,102450.0,0.83926508]
[1738145436095,0.7171359,102470.0,102450.0,0.64396108]
[1738145436298,0.7171359,102470.0,102460.0,0.24332938]
[1738145436499,0.7171359,102470.0,102460.0,0.28302715]
[1738145437807,0.7181359,102470.0,102460.0,0.28302715]
[1738145438307,0.7181359,102470.0,102460.0,0.31352715]
[1738145439504,0.80584548,102470.0,102460.0,0.31352715]
[1738145443204,0.44504548,102470.0,102460.0,0.31352715]
[1738145443404,0.80584548,102470.0,102460.0,0.31352715]
[1738145444715,0.68884886,102470.0,102460.0,0.31352715]
[1738145446817,0.32804886,102470.0,102460.0,0.31352715]
[1738145447116,0.68884886,102470.0,102460.0,0.31352715]
[1738145447313,0.32804886,102470.0,102460.0,0.31352715]
[1738145447617,0.68884886,102470.0,102460.0,0.31352715]
[1738145448303,0.32804886,102470.0,102460.0,0.31352715]
[1738145448510,0.68884886,102470.0,102460.0,0.31352715]
[1738145455020,0.65804886,102470.0,102460.0,0.36157153]
[1738145455214,0.65804886,102470.0,102460.0,0.39387153]
[1738145455414,0.65804886,102470.0,102460.0,0.50186882]
[1738145460119,0.77504548,102470.0,102460.0,0.50186882]
[1738145460322,0.77504548,102470.0,102460.0,0.42152444]
[1738145462525,0.77504548,102470.0,102460.0,0.31352715]
[1738145462723,0.80654548,102470.0,102460.0,0.31352715]
[1738145463019,0.7188359,102470.0,102460.0,0.31352715]
[1738145465022,0.3580359,102470.0,102460.0,0.31352715]
[1738145465413,0.74793684,102470.0,102460.0,0.31352715]
[1738145465723,0.74576129,102470.0,102460.0,0.31352715]
[1738145467315,0.195285,102460.0,102450.0,0.00014613]
[1738145467519,0.63572938,102460.0,102450.0,0.03987479]
[1738145467823,0.587685,102460.0,102450.0,0.28322317]
[1738145468619,0.556085,102460.0,102450.0,0.31322317]
[1738145470622,0.557085,102460.0,102450.0,0.31322317]
[1738145472227,0.76196247,102460.0,102450.0,0.31322317]
[1738145472617,0.40116247,102460.0,102450.0,0.31322317]
[1738145473018,0.76196247,102460.0,102450.0,0.31322317]
[1738145477727,0.40116247,102460.0,102450.0,0.31322317]
[1738145477926,0.76196247,102460.0,102450.0,0.31322317]
[1738145480530,0.81000685,102460.0,102450.0,0.31322317]
[1738145481229,0.76196247,102460.0,102450.0,0.31322317]
[1738145485526,0.20587747,102460.0,102450.0,0.52413239]
[1738145486736,0.20587747,102460.0,102450.0,0.88493239]
[1738145487733,0.08880463,102460.0,102450.0,0.88493239]
[1738145490034,0.001,102460.0,102450.0,0.92536734]
[1738145493930,0.001,102460.0,102450.0,0.56456734]
[1738145494132,0.001,102460.0,102450.0,0.92536734]
[1738145495233,0.001,102460.0,102450.0,0.94004734]
[1738145496047,0.001,102460.0,102450.0,0.57924734]
[1738145496241,0.001,102460.0,102450.0,0.94004734]
[1738145497441,0.001,102460.0,102450.0,0.57924734]
[1738145497639,0.001,102460.0,102450.0,0.94004734]
[1738145501244,0.00094,102460.0,102450.0,0.94004734]
[1738145507744,0.00094,102460.0,102450.0,0.89961239]
[1738145508050,0.00094,102460.0,102450.0,0.95142716]
[1738145514553,0.00094,102460.0,102450.0,0.93674716]
[1738145514850,0.00094,102460.0,102450.0,0.95142716]
[1738145516049,0.00094,102460.0,102450.0,1.05422716]
[1738145522354,0.00094,102460.0,102450.0,1.04284734]
[1738145524159,0.00094,102460.0,102450.0,0.68204734]
[1738145524360,0.00094,102460.0,102450.0,1.04284734]
[1738145525762,0.08874463,102460.0,102450.0,1.04284734]
[1738145526377,0.08874463,102460.0,102450.0,1.00241239]
[1738145527159,0.08874463,102460.0,102450.0,1.04284734]
[1738145527457,0.08874463,102460.0,102450.0,1.00241239]
[1738145528258,0.08874463,102460.0,102450.0,1.05045677]
[1738145529559,0.08874463,102460.0,102450.0,1.00241239]
[1738145530261,0.08874463,102460.0,102450.0,1.05045677]
[1738145530456,0.08874463,102460.0,102450.0,1.45169172]
[1738145530653,0.08874463,102460.0,102450.0,1.41125677]
[1738145530956,0.11707284,102470.0,102460.0,0.195285]
[1738145531155,0.09721129,102470.0,102460.0,0.80315309]
[1738145531357,0.09721129,102470.0,102460.0,0.95600697]
[1738145531662,0.09721129,102470.0,102460.0,1.00555689]
[1738145532248,0.09821129,102470.0,102460.0,1.05360127]
[1738145532560,0.09821129,102470.0,102460.0,1.00555689]
[1738145532859,0.09530668,102470.0,102460.0,1.00555689]
[1738145533057,0.09530668,102470.0,102460.0,0.96512194]
[1738145534860,0.09530668,102470.0,102460.0,0.97976194]
[1738145535664,0.001,102470.0,102460.0,0.97976194]
[1738145535970,0.001,102470.0,102460.0,0.9907662]
[1738145536260,0.20627588,102490.0,102480.0,0.195247]
[1738145536461,0.20627588,102490.0,102480.0,0.28302004]
[1738145537663,0.20627588,102490.0,102480.0,0.28402004]
[1738145537856,0.01104488,102490.0,102480.0,0.64482004]
[1738145538163,0.94575994,102500.0,102480.0,0.64482004]
[1738145538361,0.89771556,102500.0,102490.0,0.04804438]
[1738145538556,0.89771556,102500.0,102490.0,0.24327238]
[1738145540762,0.90903588,102500.0,102490.0,0.24327238]
[1738145542266,0.76293832,102500.0,102490.0,0.24327238]
[1738145544061,0.69893832,102500.0,102490.0,0.24327238]
[1738145544857,0.69893832,102500.0,102490.0,0.195228]
[1738145545166,0.69893832,102500.0,102490.0,0.24327238]
[1738145545467,0.73193832,102500.0,102490.0,0.24327238]
[1738145548269,0.69893832,102500.0,102490.0,0.24327238]
[1738145548465,0.33813832,102500.0,102490.0,0.80954779]
[1738145548671,0.33813832,102500.0,102490.0,0.48795036]
[1738145550168,0.31851481,102500.0,102490.0,0.48795036]
[1738145551266,0.31851481,102500.0,102490.0,0.84875036]
[1738145551472,0.31851481,102500.0,102490.0,0.48795036]
[1738145551766,0.31851481,102500.0,102490.0,0.84875036]
[1738145551966,0.31851481,102500.0,102490.0,0.48795036]
[1738145552362,0.31851481,102500.0,102490.0,0.84875036]
[1738145553473,0.31851481,102500.0,102490.0,0.80954779]
[1738145553666,0.31851481,102500.0,102490.0,0.81054779]
[1738145553871,0.31851481,102500.0,102490.0,0.8497351]
[1738145554570,0.31851481,102500.0,102490.0,0.81054779]
[1738145554873,0.31041827,102500.0,102490.0,0.86437511]
[1738145556366,0.31041827,102500.0,102490.0,0.82518779]
[1738145556872,0.195228,102490.0,102480.0,0.01464]
[1738145557066,0.228228,102490.0,102480.0,0.25793138]
[1738145557266,0.195228,102490.0,102480.0,0.40721308]
[1738145557469,0.18713146,102490.0,102480.0,0.40721308]
[1738145558072,0.18713146,102490.0,102480.0,0.40010923]
[1738145558272,0.18713146,102490.0,102480.0,0.43931927]
[1738145559870,0.18713146,102490.0,102480.0,0.53689452]
[1738145560867,0.59597584,102490.0,102480.0,0.43931927]
[1738145561076,0.59597584,102490.0,102480.0,0.26655704]
[1738145561277,0.59597584,102490.0,102480.0,0.23445704]
[1738145561473,0.62797584,102490.0,102480.0,0.03921004]
[1738145562280,0.195247,102480.0,102470.0,0.31316646]
[1738145562583,0.67019138,102480.0,102470.0,0.03939873]
[1738145563784,0.67019138,102480.0,102470.0,0.07983368]
[1738145564187,0.67019138,102480.0,102470.0,0.12787806]
[1738145564586,0.67019138,102480.0,102470.0,0.08744311]
[1738145564984,0.67019138,102480.0,102470.0,0.28270911]
[1738145565181,0.622147,102480.0,102470.0,0.28270911]
[1738145568880,0.63316975,102480.0,102470.0,0.28270911]
[1738145570690,0.68121413,102480.0,102470.0,0.28270911]
[1738145571191,0.63316975,102480.0,102470.0,0.28270911]
[1738145571392,0.68121413,102480.0,102470.0,0.28270911]
[1738145571894,0.63316975,102480.0,102470.0,0.28270911]
[1738145573297,0.63316975,102480.0,102470.0,0.24345651]
[1738145573790,0.27236975,102480.0,102470.0,0.24345651]
[1738145573991,0.63316975,102480.0,102470.0,0.24345651]
[1738145578494,0.68121413,102480.0,102470.0,0.24345651]
[1738145578692,0.63316975,102480.0,102470.0,0.24345651]
[1738145582494,0.68121413,102480.0,102470.0,0.24345651]
[1738145582698,0.68121413,102480.0,102470.0,0.19541213]
[1738145584396,0.72925851,102480.0,102470.0,0.00014613]
[1738145586901,0.68121413,102480.0,102470.0,0.00014613]
[1738145587103,0.87535607,102480.0,102470.0,0.00014613]
[1738145587295,0.82731169,102480.0,102470.0,0.00014613]
[1738145590406,0.87535607,102480.0,102470.0,0.00014613]
[1738145592192,0.87535607,102480.0,102470.0,0.03943326]
[1738145592805,1.23615607,102480.0,102470.0,0.03943326]
[1738145593108,1.18811169,102480.0,102470.0,0.03943326]
[1738145593909,1.18811169,102480.0,102470.0,0.00014613]
[1738145596202,1.18811169,102480.0,102470.0,0.03945288]
[1738145599107,1.23615607,102480.0,102470.0,0.03945288]
[1738145599317,1.18811169,102480.0,102470.0,0.03945288]
[1738145600811,1.15511169,102480.0,102470.0,0.23471888]
[1738145601014,1.15511169,102480.0,102470.0,0.26691888]
[1738145604011,1.27219908,102480.0,102470.0,0.26691888]
[1738145604916,1.32024346,102480.0,102470.0,0.07165288]
[1738145605115,1.32024346,102480.0,102470.0,0.03945288]
[1738145605315,1.35314346,102480.0,102470.0,0.03945288]
[1738145606213,0.195266,102470.0,102460.0,0.0318]
[1738145606407,2.10411038,102470.0,102460.0,0.0318]
[1738145606608,2.10411038,102470.0,102460.0,0.07108782]
[1738145606908,0.60411038,102470.0,102460.0,0.07108782]
[1738145607308,0.60411038,102470.0,102460.0,0.0318]
[1738145608118,0.60411038,102470.0,102460.0,0.0328]
[1738145608714,0.96491038,102470.0,102460.0,0.0328]
[1738145610324,1.22809533,102470.0,102460.0,0.0328]
[1738145613215,0.86729533,102470.0,102460.0,0.07171077]
[1738145620919,0.50649533,102470.0,102460.0,0.07171077]
[1738145621118,0.86729533,102470.0,102460.0,0.07171077]
[1738145623926,0.86729533,102470.0,102460.0,0.0328]
[1738145624119,0.86729533,102470.0,102460.0,0.001]
[1738145624523,0.89759533,102470.0,102460.0,0.001]
[1738145625616,0.94563971,102470.0,102460.0,0.001]
[1738145625931,0.195285,102460.0,102450.0,0.00014613]
[1738145626123,0.71597376,102460.0,102450.0,0.00014613]
[1738145627339,0.71597376,102460.0,102450.0,0.00514613]
[1738145629233,0.35517376,102460.0,102450.0,0.00514613]
[1738145629537,1.07677376,102460.0,102450.0,0.00514613]
[1738145630833,1.22287132,102460.0,102450.0,0.00514613]
[1738145634536,1.33979516,102460.0,102450.0,0.00514613]
[1738145635137,1.35026265,102460.0,102450.0,0.00514613]